[Event "FRA-ch Teams Top 16-B 2022"]
[Site "Chartres"]
[Date "2022.06.15"]
[Round "7.17"]
[White "Di Nicolantonio, Lucas"]
[Black "Fantinel, Thibault"]
[Result "1/2-1/2"]
[ECO "B30"]
[WhiteElo "2399"]
[BlackElo "2388"]
[Annotator "TA"]
[PlyCount "78"]
[EventDate "2022.06.09"]
[EventType "team-tourn"]
[EventCountry "FRA"]
[SourceTitle "playchess.com"]
[Source "ChessBase"]
[SourceQuality "1"]
[TimeControl "40/5400+30:1800+30"]

{[%evp 9,78,5,5,5,5,5,5,5,11,6,9,7,5,11,5,0,0,0,0,0,3,0,0,0,0,0,3,0,0,0,0,0,0,0,0,0,0,0,0,-10,0,-27,0,-25,-8,-9,-11,-9,-15,-7,0,0,0,-10,0,0,0,0,0,0,0,0,0,0,0,0,0,0,0,0,0]} 1. e4 {[%emt 0:00:03]} c5 {[%emt 0:00:14]} 2. Nf3 {[%emt 0:00:10]} Nc6 {[%emt 0:00:16]} 3. Bc4 {[%emt 0:00:19]} e6 {[%emt 0:00:25]} 4. O-O {[%emt 0:00:17]} Nf6 {[%emt 0:00:22]} 5. Re1 {[%emt 0:00:37][%cal Bf1e1,Be1e4,Be4d4][%mdl 32]} Nxe4 {[%emt 0:00:23]} 6. Rxe4 {[%emt 0:00:04] B30: Sicilian: 2...Nc6 3 Bb5, lines without ...g6.} d5 {[%emt 0:00:04] [#]} 7. Bxd5 {[%emt 0:00:07]} Qxd5 {[%emt 0:00:09]} 8. Nc3 {[%emt 0:00:14]} Qf5 {[%emt 0:00:20]} 9. d4 {[%emt 0:01:43]} cxd4 {[%emt 0:00:15]} 10. Nxd4 {[%emt 0:00:04]} Nxd4 {[%emt 0:00:31]} 11. Rxd4 {[%emt 0:03:37] [#] Rd8+ is the strong threat.} Be7 {[%emt 0:00:10] Against Rd8+} 12. Be3 {[%emt 0:03:01]} O-O {[%emt 0:01:05] [#]} 13. Rf4 $146 {[%emt 0:08:59]} ({Predecessor:} 13. Qe2 Bf6 14. Rf4 Qg6 15. Rg4 Qf5 16. Ne4 e5 17. h3 Kh8 18. Ng3 Qe6 19. Nh5 {½-½ (42) Adhiban,B (2648)-Sethuraman,S (2619) chess24.com INT 2022}) 13... Qe5 {[%emt 0:02:17]} 14. Qf3 {[%emt 0:00:12]} Qc7 {[%emt 0:01:38]} 15. Rd4 {[%emt 0:05:20]} Bf6 {[%emt 0:15:32]} 16. Rd3 {[%emt 0:08:40]} Bd7 {[%emt 0:02:24]} 17. Bf4 {[%emt 0:10:17]} Qc8 {[%emt 0:00:18]} 18. Qg3 {[%emt 0:21:13]} Bc6 {[%emt 0:03:21] Prevents Ne4.} 19. Be5 {[%emt 0:04:19]} Bxe5 {[%emt 0:00:12]} 20. Qxe5 {[%emt 0:00:05]} Rd8 {[%emt 0:00:50]} 21. Rad1 {[%emt 0:03:07][%cal Ba1d1,Bd1d3,Bd3g3][%mdl 32]} Rxd3 {[%emt 0:00:23]} 22. Rxd3 {[%emt 0:00:04]} Qf8 {[%emt 0:00:05]} 23. Qd4 {[%emt 0:02:40]} Qe7 {[%emt 0:04:15]} 24. h3 {[%emt 0:02:35]} h6 {[%emt 0:05:14]} (24... Qg5 {keeps more tension.} 25. Qg4 Qe5 26. Qd1 h6) 25. a3 {[%emt 0:05:56]} a6 {[%emt 0:05:48]} 26. b4 {[%emt 0:01:03]} Rc8 {[%emt 0:02:51]} 27. Rg3 {[%emt 0:03:06][%csl Gg3][%cal Rd4g7] The position is equal.} g6 {[%emt 0:02:14]} 28. Qe5 {[%emt 0:04:11]} Qc7 {[%emt 0:22:26]} 29. Qf6 {[%emt 0:01:44]} Rd8 {[%emt 0:01:17]} 30. h4 {[%emt 0:00:55] And now h5 would win.} h5 {[%emt 0:02:32]} 31. Rd3 {[%emt 0:06:16]} Rxd3 {[%emt 0:02:17]} (31... Rd7 {is interesting.} 32. f3 Qb6+ 33. Kh2 Rxd3 34. cxd3 a5) 32. cxd3 $11 {[%emt 0:00:04][%mdl 4096] Endgame KQB-KQN} e5 {[%emt 0:00:15][%cal Oc6g2]} 33. d4 {[%emt 0:03:02]} exd4 {[%emt 0:01:17]} 34. Qxd4 {[%emt 0:00:04]} Qe7 {[%emt 0:00:06]} 35. f3 {[%emt 0:02:47]} Qe1+ {[%emt 0:05:44]} 36. Kh2 {[%emt 0:00:03]} Qa1 {[%emt 0:00:08]} 37. Qd8+ {[%emt 0:00:26]} Kg7 {[%emt 0:00:15]} 38. Qd4+ {[%emt 0:00:09]} Kg8 {[%emt 0:02:31]} 39. Qd8+ {[%emt 0:00:05]} Kg7 {[%emt 0:00:03] An even fight not without its subleties.  Weighted Error Value: White=0.03 (flawless) /Black=0.03 (flawless)} 1/2-1/2

[Event "FRA-ch Teams Top 16-B 2022"]
[Site "Chartres"]
[Date "2022.06.15"]
[Round "7.18"]
[White "Kirk, Ezra"]
[Black "Duboue, Peio"]
[Result "1/2-1/2"]
[ECO "C54"]
[WhiteElo "2446"]
[BlackElo "2426"]
[Annotator "TA"]
[PlyCount "104"]
[EventDate "2022.06.09"]
[EventType "team-tourn"]
[EventCountry "FRA"]
[SourceTitle "playchess.com"]
[Source "ChessBase"]
[SourceQuality "1"]
[TimeControl "40/5400+30:1800+30"]

{[%evp 21,104,14,14,18,10,6,12,2,10,17,12,0,17,5,17,14,33,31,86,29,33,17,21,12,14,1,31,29,43,33,40,41,39,39,40,43,60,60,60,60,60,53,53,52,52,52,45,39,52,27,59,59,59,59,59,59,59,59,60,56,60,60,63,53,60,54,53,37,33,22,40,5,15,8,8,9,19,9,35,35,35,13,16,0,2]} 1. e4 {[%emt 0:03:36]} e5 {[%emt 0:00:09]} 2. Nf3 {[%emt 0:00:16]} Nc6 {[%emt 0:00:04]} 3. Bc4 {[%emt 0:00:05]} Nf6 {[%emt 0:00:08]} 4. d3 {[%emt 0:00:23]} Bc5 {[%emt 0:01:13]} 5. c3 {[%emt 0:01:06]} d6 {[%emt 0:00:44]} 6. O-O {[%emt 0:01:07]} O-O {[%emt 0:10:07]} 7. Bb3 {[%emt 0:00:58]} a6 {[%emt 0:04:17]} 8. Re1 {[%emt 0:03:34]} Ba7 {[%emt 0:02:02]} 9. h3 {[%emt 0:00:22]} Be6 {[%emt 0:06:31]} 10. Nbd2 {[%emt 0:06:07][%cal Bb1d2,Bd2f1,Bf1g3][%mdl 32]} Re8 {[%emt 0:06:26]} 11. Nf1 {[%emt 0:06:19]} h6 {[%emt 0:00:54]} 12. Bxe6 {[%emt 0:08:01] C54: Giuoco Piano: 4 c3 Nf6, main lines with 5 d4 and 5 d3.} Rxe6 {[%emt 0:02:49]} 13. Qb3 {[%emt 0:23:29]} Rb8 {[%emt 0:06:16] [#]} 14. Ng3 $146 {[%emt 0:03:13]} ({Predecessor:} 14. Be3 Bxe3 15. Nxe3 Nh7 16. Nd5 Rg6 17. Kh1 Ne7 18. Nh4 Re6 19. Nxe7+ Qxe7 20. Nf5 {1-0 (51) Svetushkin,D (2461)-Matisson,J Internet 2001}) 14... Qd7 {[%emt 0:13:08]} (14... d5 {feels hotter.} 15. Nf5 Qd7 16. Bd2 b5) 15. Be3 {[%emt 0:00:45]} (15. Bd2 {is interesting.} b5 16. Nf5 d5 17. Qc2) 15... Bxe3 {[%emt 0:00:49]} 16. Rxe3 {[%emt 0:00:13]} Ne7 {[%emt 0:06:35]} 17. d4 {[%emt 0:04:43] [#] Black must now prevent d5.} Ng6 {[%emt 0:00:19]} 18. Rd1 {[%emt 0:00:29]} Qb5 {[%emt 0:06:26]} 19. Qc2 {[%emt 0:01:27]} Nf4 {[%emt 0:02:05]} ({Black should try} 19... Ree8 $14) 20. d5 {[%emt 0:01:41]} (20. c4 $16 Qa5 21. c5) 20... Ree8 $11 {[%emt 0:00:18]} 21. c4 {[%emt 0:00:31]} Qc5 {[%emt 0:02:35]} 22. Rb1 {[%emt 0:03:58]} a5 {[%emt 0:03:02]} 23. a3 {[%emt 0:05:38]} Qa7 {[%emt 0:00:05]} 24. Nf5 {[%emt 0:01:03]} Kh7 {[%emt 0:02:04]} 25. Rc3 {[%emt 0:04:45]} Nd7 {[%emt 0:06:56]} 26. g3 {[%emt 0:03:40]} Nh5 {[%emt 0:04:50]} ({But not} 26... Nxh3+ 27. Kg2 $16) 27. b4 {[%emt 0:03:52]} g6 {[%emt 0:00:14]} 28. Ne3 {[%emt 0:00:05]} axb4 {[%emt 0:01:46]} 29. axb4 {[%emt 0:00:06]} b6 {[%emt 0:00:19] Against c5} 30. Qc1 {[%emt 0:04:12] [#] Hoping for Ng4.} Nhf6 {[%emt 0:00:06]} 31. Ra3 {[%emt 0:00:44]} Qb7 {[%emt 0:00:03]} 32. Nd2 {[%emt 0:00:14][%cal Bf3d2,Bd2b1,Bb1a3,Ba3b5][%mdl 32]} Ra8 {[%emt 0:02:18]} 33. Rba1 {[%emt 0:00:20]} Kg7 {[%emt 0:05:03]} 34. Kg2 {[%emt 0:02:17]} Rec8 {[%emt 0:00:15]} 35. Qb2 {[%emt 0:01:42]} Kf8 {[%emt 0:01:36]} 36. f3 {[%emt 0:01:10]} Rcb8 {[%emt 0:01:52]} 37. Nb1 {[%emt 0:00:56]} Rxa3 {[%emt 0:02:00]} 38. Nxa3 {[%emt 0:01:18]} Ra8 {[%emt 0:00:43]} 39. Nb5 {[%emt 0:00:08] Rxa8+ is the strong threat.} Ne8 {[%emt 0:00:29]} 40. Ra3 {[%emt 0:01:03]} Rxa3 {[%emt 0:00:28]} 41. Qxa3 {[%emt 0:30:56]} Nb8 {[%emt 0:03:54]} 42. Na7 {[%emt 0:00:00] White is much more active. The black rooks are badly placed.} Qa8 {[%emt 0:01:23]} 43. Qa4 {[%emt 0:00:00]} Nd7 {[%emt 0:03:10][%cal Bb8d7,Bd7f6,Bf6g8,Bg8e7][%mdl 32]} 44. Nd1 {[%emt 0:00:00]} ({Reject} 44. Qxd7 Qxa7 45. Ng4 Qa2+ 46. Nf2 Qxc4 $17) 44... Ndf6 {[%emt 0:01:27]} 45. Nc3 {[%emt 0:00:00]} Ng8 {[%emt 0:00:40]} 46. Qa6 {[%emt 0:00:00]} Qd8 {[%emt 0:03:01]} 47. Qa1 {[%emt 0:00:00]} Qg5 {[%emt 0:01:19] Prevents Qc1.} 48. Qe1 {[%emt 0:07:58] Against Qd2+} f5 {[%emt 0:00:54]} 49. h4 {[%emt 0:00:00]} Qf6 {[%emt 0:02:05]} 50. Nc6 {[%emt 0:00:00]} Ne7 {[%emt 0:01:32]} 51. Nb8 {[%emt 0:00:00] Strongly threatening Nd7+.} Kg7 {[%emt 0:01:22]} 52. Qf2 {[%emt 0:00:00]} g5 {[%emt 0:17:39] Weighted Error Value: White=0.08 (flawless) /Black=0.07 (flawless)} 1/2-1/2

[Event "FRA-ch Teams Top 16-B 2022"]
[Site "Chartres"]
[Date "2022.06.15"]
[Round "7.19"]
[White "Real, Thibault"]
[Black "Le Hetet, Nicolas"]
[Result "1/2-1/2"]
[ECO "B30"]
[WhiteElo "2262"]
[BlackElo "2372"]
[Annotator "TA"]
[PlyCount "66"]
[EventDate "2022.06.09"]
[EventType "team-tourn"]
[EventCountry "FRA"]
[SourceTitle "playchess.com"]
[Source "ChessBase"]
[SourceQuality "1"]
[TimeControl "40/5400+30:1800+30"]

{[%evp 9,66,30,44,43,44,27,28,29,41,50,47,42,35,31,60,18,15,20,13,0,62,9,90,24,59,0,0,0,0,0,0,-118,0,-110,-110,-149,-148,-379,-379,-433,-432,-585,-583,-575,-87,-104,-109,-94,-87,-90,-97,-114,0,0,0,-107,-114,-155,0]} 1. e4 {[%emt 0:00:04]} c5 {[%emt 0:00:14]} 2. Nf3 {[%emt 0:00:05]} Nc6 {[%emt 0:00:13]} 3. Bc4 {[%emt 0:00:07]} e5 {[%emt 0:05:12]} 4. O-O {[%emt 0:00:31]} Be7 {[%emt 0:00:31]} 5. d4 {[%emt 0:00:09]} cxd4 {[%emt 0:16:34]} 6. c3 $1 {[%emt 0:01:02] B30: Sicilian: 2...Nc6 3 Bb5, lines without ...g6.} Nf6 {[%emt 0:07:34][%cal Bg8f6,Bf6e4,Be4c5][%mdl 32]} 7. cxd4 {[%emt 0:00:56]} exd4 {[%emt 0:03:05]} 8. e5 {[%emt 0:00:11] White has an edge.} Ne4 {[%emt 0:02:45]} 9. Bd5 {[%emt 0:00:06]} Nc5 {[%emt 0:01:32]} 10. Nxd4 {[%emt 0:00:09]} Nxe5 {[%emt 0:05:56] [#]} 11. Nc3 $146 {[%emt 0:00:12]} ({Predecessor:} 11. b4 Ne6 12. Nf5 Bf6 13. Nd6+ Kf8 14. Nc3 Nc6 15. Nde4 Be5 16. b5 Ncd4 17. f4 {1-0 (23) Pap,M (2459)-Hess,M (2114) Bad Woerishofen 2015}) 11... d6 {[%emt 0:04:14]} 12. h3 {[%emt 0:00:08][%mdl 1024] White has compensation.} (12. b4 $5 {[%cal Rb4c5]} Ne6 13. Nf5 $11) 12... O-O {[%emt 0:07:30]} 13. Be3 {[%emt 0:01:34]} Bf6 {[%emt 0:09:03]} 14. a3 {[%emt 0:32:18]} a5 {[%emt 0:05:21]} (14... Nc6 $11) 15. Ndb5 {[%emt 0:03:36] White is more active.} ({White should play} 15. Qc2 $14) 15... Ned3 {[%emt 0:15:05]} (15... Bf5 $11) 16. Rb1 {[%emt 0:02:20]} (16. Qe2 $1 $16) 16... a4 {[%emt 0:01:12]} 17. Nxa4 {[%emt 0:23:09]} Rxa4 $11 {[%emt 0:03:37]} 18. b4 {[%emt 0:00:10]} Nb2 {[%emt 0:06:57]} 19. Rxb2 {[%emt 0:13:03]} Bxb2 {[%emt 0:00:01]} 20. Nxd6 {[%emt 0:03:52] [#]} (20. bxc5 $11 Rxa3 21. Nxa3 Bxa3 22. cxd6) 20... Be6 {[%emt 0:02:49]} 21. Bxc5 {[%emt 0:05:37] [#]} (21. bxc5 $11 {was the only way to keep the balance.} Qd7 22. Bxe6 fxe6 23. Qb3 Bxa3 24. c6 bxc6 25. Qxa4 Bxd6 26. Ra1) 21... Bxd5 $1 $17 {[%emt 0:00:42]} 22. Qxa4 {[%emt 0:00:41]} (22. Nf5 Bxg2) 22... b6 {[%emt 0:00:14]} 23. Rd1 $2 {[%emt 0:00:52]} (23. Nxf7 $17 Qa8 24. Qxa8 Rxa8 25. Nh6+ gxh6 26. Bxb6) 23... Qg5 $19 {[%emt 0:00:40][%csl Gd5][%cal Rg5g2]} 24. Rxd5 {[%emt 0:05:57]} Qxd5 {[%emt 0:00:24]} 25. Nf5 {[%emt 0:00:09]} Qxf5 {[%emt 0:00:28]} 26. Bxf8 {[%emt 0:00:05][%cal Of8c5][%mdl 4096] Endgame Strongly threatening Bc5! KQB-KQB} Qb1+ $2 {[%emt 0:00:58]} (26... Bd4 $19 {is more deadly.} 27. Qd1 Qxf2+ 28. Kh1 Kxf8) 27. Kh2 $17 {[%emt 0:00:05][%cal Of8c5] Bc5! is the strong threat.} Be5+ {[%emt 0:00:05]} ({Much weaker is} 27... Kxf8 $6 28. Qa8+ Ke7 29. Qb7+ Kf6 30. Qxb6+ Kf5 31. g4+ Kg5 32. Qc5+ f5 33. Qe7+ Bf6 34. Qe3+ Kh4 35. Qg3+ Kg5 36. Qe3+ Kh4 37. Qg3+ Kg5 38. Qe3+ $11) 28. g3 {[%emt 0:00:10]} Kxf8 {[%emt 0:00:56]} 29. Qa8+ {[%emt 0:01:29]} Ke7 {[%emt 0:00:03] And now ...Qc2 would win.} 30. Qb7+ {[%emt 0:00:10]} Ke8 {[%emt 0:00:57]} (30... Kf6 $17 {aiming for ...g6.} 31. Qxb6+ Kf5) 31. Qc6+ {[%emt 0:00:37]} (31. Qc8+ $11 {keeps the balance.} Ke7 32. Qb7+ Ke6 33. Qxb6+ Kf5 34. Qc5) 31... Ke7 {[%emt 0:00:20] White must now prevent ...Qg6.} 32. Qb7+ {[%emt 0:00:50]} Ke6 {[%emt 0:00:41]} 33. Qc8+ {[%emt 0:01:31] [#]} Ke7 $2 {[%emt 0:00:33] Weighted Error Value: White=0.42/Black=0.41} (33... Kf6 $1 $17 34. Qc6+ Kf5) 1/2-1/2

[Event "FRA-ch Teams Top 16-B 2022"]
[Site "Chartres"]
[Date "2022.06.15"]
[Round "7.20"]
[White "Favarel, Julien"]
[Black "Eugene, Floryan"]
[Result "0-1"]
[ECO "C47"]
[WhiteElo "2312"]
[BlackElo "2370"]
[Annotator "TA"]
[PlyCount "78"]
[EventDate "2022.06.09"]
[EventType "team-tourn"]
[EventCountry "FRA"]
[SourceTitle "playchess.com"]
[Source "ChessBase"]
[SourceQuality "1"]
[TimeControl "40/5400+30:1800+30"]

{[%evp 16,78,0,0,0,12,30,0,0,0,4,0,0,0,0,0,0,0,0,0,0,-19,0,0,6,0,0,-7,0,0,0,0,0,0,0,0,9,-11,-8,-56,-72,-72,-76,-638,-1328,-1206,-1321,-1276,-1277,-1231,-843,-843,-843,-835,-828,-825,-762,-29972,-29974,-29974,-29974,-29972,-29971,-29971,-29953]} 1. e4 {[%emt 0:00:03]} e5 {[%emt 0:00:14]} 2. Nf3 {[%emt 0:00:13]} Nc6 {[%emt 0:00:08]} 3. d4 {[%emt 0:00:11]} exd4 {[%emt 0:00:20]} 4. Nxd4 {[%emt 0:00:08]} Nf6 {[%emt 0:01:09]} 5. Nxc6 {[%emt 0:00:11]} bxc6 {[%emt 0:00:20]} 6. Nc3 {[%emt 0:00:11]} Bb4 {[%emt 0:05:18]} 7. Bd3 {[%emt 0:00:26]} d5 {[%emt 0:03:15]} 8. Bd2 {[%emt 0:00:59]} O-O {[%emt 0:01:10]} 9. O-O {[%emt 0:00:04]} Rb8 {[%emt 0:00:08] C47: Scotch Four Knights and Four Knights with 4 g3.} 10. Re1 {[%emt 0:12:36]} Bg4 $1 {[%emt 0:01:20][%mdl 4] is more profitable than 10...Re8 at the moment.} 11. Qc1 {[%emt 0:05:38]} (11. f3 $5 {[%cal Rf3g4]} Bh5 12. exd5 $11) 11... Re8 {[%emt 0:00:06] The position is equal.} 12. exd5 {[%emt 0:00:54]} Rxe1+ {[%emt 0:00:07]} 13. Qxe1 {[%emt 0:00:06]} cxd5 {[%emt 0:00:06]} 14. h3 {[%emt 0:01:29]} Be6 {[%emt 0:09:53] [#]} 15. a3 $146 {[%emt 0:13:13]} ({Predecessor:} 15. b3 c5 16. Na4 Bxd2 17. Qxd2 Qc7 18. Qe3 Nd7 19. Rd1 h6 20. c3 c4 21. Bc2 {1-0 (47) Lagarde,M (2647)-Esipenko,A (2713) Terme Catez 2021}) 15... Bf8 {[%emt 0:07:42]} 16. b4 {[%emt 0:12:06]} c5 {[%emt 0:09:54]} 17. bxc5 {[%emt 0:00:48]} Bxc5 {[%emt 0:00:14]} 18. Na4 {[%emt 0:00:59]} Bf8 {[%emt 0:00:15]} 19. Bb4 {[%emt 0:03:52]} Bd7 {[%emt 0:00:23]} 20. Bxf8 {[%emt 0:02:04]} Qxf8 {[%emt 0:00:20]} 21. Qa5 {[%emt 0:01:08]} Bxa4 {[%emt 0:00:46]} 22. Qxa4 {[%emt 0:00:11]} Qc5 {[%emt 0:00:08]} 23. Re1 {[%emt 0:01:47]} g6 {[%emt 0:07:02]} 24. g3 {[%emt 0:19:05]} Kg7 {[%emt 0:00:20]} 25. Kg2 {[%emt 0:02:43]} a5 {[%emt 0:00:33]} 26. Re3 {[%emt 0:02:53]} Rb1 {[%emt 0:07:30]} 27. Rf3 {[%emt 0:01:59]} (27. Qf4 $11 {is more appropriate.}) 27... Qc3 $1 $40 {[%emt 0:01:00][%mdl 128] Black has strong attack.} 28. Qf4 {[%emt 0:03:36] [#]} Qa1 $1 {[%emt 0:01:55] Black is more active.} 29. Bf1 $2 {[%emt 0:05:55][%mdl 8192] Loses the game.} Rxf1 $19 {[%emt 0:01:20]} 30. Qxf6+ {[%emt 0:00:07]} Qxf6 {[%emt 0:00:04]} 31. Rxf6 {[%emt 0:00:13]} Kxf6 {[%emt 0:24:22]} 32. Kxf1 {[%emt 0:00:19][%mdl 4096] Endgame [#] KP-KP} Ke5 $1 {[%emt 0:00:09]} 33. c3 {[%emt 0:07:41]} d4 {[%emt 0:00:59]} 34. Ke2 {[%emt 0:00:04]} dxc3 {[%emt 0:00:06] ( -> ...c2)} 35. Kd3 {[%emt 0:00:04]} f5 {[%emt 0:04:02][%cal Oc3c2,Bf7f5,Bf5f4][%mdl 32] ...c2! is the strong threat.} 36. f3 {[%emt 0:02:25]} f4 {[%emt 0:03:56] Black mates.} 37. g4 {[%emt 0:00:25]} c2 $1 {[%emt 0:00:05]} 38. Kxc2 {[%emt 0:00:04]} Kd4 {[%emt 0:00:02]} 39. Kd2 {[%emt 0:00:38]} g5 {[%emt 0:00:06] Weighted Error Value: White=0.44/Black=0.04 (flawless)} 0-1

[Event "FRA-ch Teams Top 16-B 2022"]
[Site "Chartres"]
[Date "2022.06.15"]
[Round "7.21"]
[White "De Pierrefeu, Thibaut"]
[Black "Ternault, Mathieu"]
[Result "0-1"]
[ECO "C01"]
[WhiteElo "2181"]
[BlackElo "2367"]
[Annotator "TA"]
[PlyCount "58"]
[EventDate "2022.06.09"]
[EventType "team-tourn"]
[EventCountry "FRA"]
[SourceTitle "playchess.com"]
[Source "ChessBase"]
[SourceQuality "1"]
[TimeControl "40/5400+30:1800+30"]

{[%evp 14,58,21,21,23,22,27,15,28,16,15,14,14,14,16,14,10,-42,-30,-28,-31,-178,-165,-435,-439,-425,-452,-29984,-836,-779,-747,-1155,-473,-1152,-1102,-1111,-1109,-1743,-1829,-1823,-1751,-1717,-1645,-1381,-1367,-1342,-1320]} 1. e4 {[%emt 0:00:02]} e6 {[%emt 0:03:25]} 2. d4 {[%emt 0:00:21]} d5 {[%emt 0:00:11]} 3. exd5 {[%emt 0:01:02]} exd5 {[%emt 0:00:12]} 4. Nf3 {[%emt 0:00:13]} Nf6 {[%emt 0:01:21]} 5. Bd3 {[%emt 0:00:28]} c5 {[%emt 0:00:31][%cal Bc7c5,Bc5c4][%mdl 32]} 6. O-O {[%emt 0:01:22]} c4 {[%emt 0:00:27]} 7. Re1+ {[%emt 0:00:09]} Be7 {[%emt 0:00:20]} 8. Bf1 {[%emt 0:00:10]} O-O {[%emt 0:01:27] C01: French: Exchange Variation.} 9. b3 {[%emt 0:04:03]} cxb3 {[%emt 0:00:21]} 10. axb3 {[%emt 0:00:16]} Nc6 {[%emt 0:00:28] The position is equal.} 11. h3 {[%emt 0:02:37]} Bf5 {[%emt 0:07:59]} (11... Ne4 {looks sharper.} 12. c4 Be6 13. Ba3 Re8) 12. Ba3 {[%emt 0:09:48]} Bxa3 {[%emt 0:06:04]} 13. Nxa3 {[%emt 0:00:45]} Rc8 {[%emt 0:00:59][%cal Ba8c8,Bc8c6,Bc6g6][%mdl 32]} 14. Ne5 {[%emt 0:11:48]} Ne4 {[%emt 0:08:21]} 15. Nxc6 {[%emt 0:17:40]} ({White should try} 15. c4 $11) 15... Rxc6 $15 {[%emt 0:02:07] [#]} 16. c4 $146 {[%emt 0:05:54]} ({Predecessor:} 16. Re3 Qf6 17. Rf3 Ng5 18. Re3 Ne6 19. c3 a6 20. b4 b5 21. Qb3 Nf4 22. Rae1 {½-½ (63) Touzane,O (2500)-Hamdouchi,H (2535) Montpellier 1996}) 16... Rg6 {[%emt 0:16:22] And now ...Qh4 would win.} 17. cxd5 {[%emt 0:08:50] Loses the game.} (17. Qf3 $15 Bxh3 18. Rxe4 (18. Qxh3 Rh6 $17) (18. cxd5 $2 Ng5 $17) 18... dxe4 19. Qxh3) 17... Qh4 $19 {[%emt 0:05:27]} ({But not} 17... Qxd5 18. Qf3 $14) 18. Qf3 {[%emt 0:08:40] [#]} (18. Ra2 {was the only chance.} Nc3 19. Qf3 Nxa2 20. Qxf5) 18... Ng5 $1 {[%emt 0:05:15][%mdl 64] Discovered Attack} 19. Qxf5 {[%emt 0:00:33]} Nxh3+ $1 {[%emt 0:00:32]} 20. Kh2 {[%emt 0:02:20]} (20. Qxh3 $19 Qxh3 21. Nc2) 20... Nxf2+ {[%emt 0:02:14]} (20... Ng5+ $142 21. Kg1 Rh6 22. Qh3 Nxh3+ 23. gxh3 Rg6+ 24. Bg2 Qxh3 25. Kf1 Qxg2+ 26. Ke2 Qe4+ 27. Kd1 Qxd4+ 28. Kc1 Qxa1+ 29. Kd2 Qd4+ 30. Kc1 Rc8+ 31. Kb1 Qxf2 32. Nc4 Rg2 33. Re2 Qxe2 34. Nd2 Qxd2 35. Ka1 Rg1#) 21. Kg1 {[%emt 0:00:08] Black is clearly winning.} Ng4 {[%emt 0:03:37][%csl Gg4][%cal Rh4h2]} 22. Bd3 {[%emt 0:04:03]} Qh2+ {[%emt 0:01:07]} 23. Kf1 {[%emt 0:00:04]} Rf6 {[%emt 0:02:06]} 24. Qxf6 {[%emt 0:00:33]} gxf6 {[%emt 0:02:34]} 25. Nc4 {[%emt 0:01:03]} Qf4+ {[%emt 0:02:36]} 26. Ke2 {[%emt 0:02:45]} Re8+ {[%emt 0:01:03]} 27. Kd1 {[%emt 0:00:09]} Rxe1+ {[%emt 0:00:54]} 28. Kxe1 {[%emt 0:00:02]} Qf2+ {[%emt 0:00:33]} 29. Kd1 {[%emt 0:00:03]} Qg1+ {[%emt 0:00:11] Weighted Error Value: White=1.13/Black=0.26 (precise)} 0-1